fUSD/lending_fUSD_20251217
["ID","MTS","AMOUNT","RATE_DAILY","PERIOD"]
[398928079,1766001044464,-150.0,0.00016622,2]
[398928080,1766001044474,-150.0,0.00016631,2]
[398928081,1766001044483,-150.0,0.00016634,2]
[398928082,1766001044492,-150.0,0.00016635,2]
[398928083,1766001044502,-150.0,0.00016647,2]
[398928084,1766001044511,-150.0,0.00016647,2]
[398928085,1766001044520,-150.0,0.00016647,2]
[398928086,1766001044529,-150.0,0.00016647,2]
[398928087,1766001044538,-500.0,0.00016649,2]
[398928088,1766001044547,-500.0,0.00016649,2]
[398928089,1766001044556,-150.0,0.00016654,2]
[398928090,1766001044566,-150.0,0.00016655,2]
[398928091,1766001044575,-150.0,0.00016664,2]
[398928092,1766001044584,-150.0,0.0001667,2]
[398928093,1766001044594,-150.0,0.00016673,2]
[398928094,1766001044603,-150.0,0.00016676,2]
[398928095,1766001044612,-150.0,0.00016684,2]
[398928096,1766001044621,-150.0,0.00016691,2]
[398928097,1766001044631,-150.0,0.00016693,2]
[398928098,1766001044640,-150.0,0.00016695,2]
[398928099,1766001044649,-150.0,0.00016696,2]
[398928100,1766001044658,-150.0,0.00016699,2]
[398928101,1766001044667,-150.0,0.00016703,2]
[398928102,1766001044676,-150.0,0.00016703,2]
[398928103,1766001044685,-150.0,0.0001671,2]
[398928104,1766001044695,-164.0,0.00016712,2]
[398928105,1766001044705,-150.0,0.00016717,2]
[398928106,1766001044715,-150.0,0.00016722,2]
[398928107,1766001044727,-150.0,0.00016723,2]
[398928108,1766001044737,-150.0,0.00016725,2]
[398928109,1766001044746,-150.0,0.00016725,2]
[398928110,1766001044756,-150.0,0.00016728,2]
[398928111,1766001044766,-150.0,0.00016732,2]
[398928112,1766001044776,-150.0,0.00016738,2]
[398928113,1766001044786,-150.0,0.00016744,2]
[398928114,1766001044796,-150.0,0.00016744,2]
[398928115,1766001044806,-150.0,0.00016749,2]
[398928116,1766001044816,-150.0,0.00016751,2]
[398928117,1766001044826,-150.0,0.00016752,2]
[398928118,1766001044836,-1117.96971866,0.00016757,2]
[398928119,1766001044846,-150.0,0.00016758,2]
[398928120,1766001044856,-150.0,0.0001676,2]
[398928121,1766001044866,-150.0,0.00016765,2]
[398928122,1766001044877,-150.0,0.00016777,2]
[398928123,1766001044887,-150.0,0.00016779,2]
[398928124,1766001044898,-150.0,0.00016781,2]
[398928125,1766001044907,-150.0,0.00016789,2]
[398928126,1766001044917,-150.0,0.00016792,2]
[398928127,1766001044927,-150.0,0.00016798,2]
[398928128,1766001044936,-150.0,0.000168,2]
[398928129,1766001044946,-674.34505657,0.000168,2]
[398928130,1766001044956,-155.23202183,0.000168,2]
[398928131,1766001044965,-150.0,0.00016802,2]
[398928132,1766001044975,-150.0,0.00016803,2]
[398928133,1766001044985,-484.62942305,0.0001681,2]
[398928134,1766001044994,-500.0,0.0001681,2]
[398928135,1766001045004,-150.0,0.00016811,2]
[398928136,1766001045015,-150.0,0.00016816,2]
[398928137,1766001045025,-150.0,0.00016821,2]
[398928138,1766001045035,-150.0,0.00016828,2]
[398928139,1766001045045,-150.0,0.0001683,2]
[398928140,1766001045056,-7640.86397139,0.0001683,2]
[398928141,1766001045067,-150.0,0.00016835,2]
[398928142,1766001045077,-150.0,0.00016839,2]
[398928143,1766001045087,-150.0,0.0001684,2]
[398928144,1766001045099,-150.0,0.00016841,2]
[398928145,1766001045109,-150.0,0.00016841,2]
[398928146,1766001045119,-150.0,0.00016845,2]
[398928147,1766001045131,-210.0,0.00016848,2]
[398928148,1766001045141,-155.23202182,0.0001685,2]
[398928149,1766001045151,-200.01825375,0.00016854,2]
[398928150,1766001045162,-150.0,0.00016856,2]
[398928151,1766001045173,-150.0,0.00016856,2]
[398928152,1766001045184,-150.0,0.00016862,2]
[398928153,1766001045194,-200.0,0.00016864,2]
[398928154,1766001045205,-150.0,0.00016865,2]
[398928155,1766001045215,-150.0,0.00016868,2]
[398928156,1766001045225,-150.0,0.00016869,2]
[398928157,1766001045236,-2291.85364901,0.00016873,2]
[398928158,1766001045246,-150.0,0.00016873,2]
[398928159,1766001045256,-150.0,0.00016876,2]
[398928160,1766001045267,-1600.0,0.00016877,2]
[398928161,1766001045279,-150.0,0.00016882,2]
[398928162,1766001045290,-150.0,0.00016883,2]
[398928163,1766001045300,-150.0,0.00016889,2]
[398928164,1766001045310,-302.01604807,0.00016898,2]
[398928165,1766001045320,-150.0,0.00016898,2]
[398928166,1766001045330,-500.0,0.00016899,2]
[398928167,1766001045339,-302.01604806,0.00016899,2]
[398928168,1766001045349,-1573.57835286,0.000169,2]
[398928169,1766001045360,-1000.0,0.000169,2]
[398928170,1766001045371,-10000.0,0.000169,2]
[398928171,1766001045382,-302.01604806,0.000169,2]
[398928172,1766001045392,-155.23202182,0.000169,2]
[398928173,1766001045403,-1117.96971866,0.000169,2]
[398928174,1766001045413,-570.33467883,0.000169,2]
[398928175,1766001045422,-6949.04698762,0.000169,2]
[398928176,1766001045432,-160.77899003,0.000169,2]
[398928177,1766001045443,-150.0,0.00016901,2]
[398928178,1766001045453,-150.0,0.00016903,2]
[398928179,1766001045464,-150.0,0.00016907,2]
[398928180,1766001045474,-150.0,0.00016908,2]
[398928181,1766001045485,-150.0,0.00016911,2]
[398928182,1766001045495,-150.0,0.00016912,2]
[398928183,1766001045505,-150.0,0.00016924,2]
[398928184,1766001045515,-150.0,0.00016928,2]
[398928185,1766001045525,-150.0,0.00016934,2]
[398928186,1766001045535,-150.0,0.00016938,2]
[398928187,1766001045545,-150.0,0.00016945,2]
[398928188,1766001045555,-150.0,0.00016947,2]
[398928189,1766001045566,-150.0,0.00016949,2]
[398928190,1766001045576,-150.0,0.00016949,2]
[398928191,1766001045586,-150.0,0.00016957,2]
[398928192,1766001045596,-2198.0,0.00016959,2]
[398928193,1766001045607,-150.0,0.0001696,2]
[398928194,1766001045617,-150.0,0.00016966,2]
[398928195,1766001045628,-500.0,0.00016973,2]
[398928196,1766001045638,-150.0,0.00016973,2]
[398928197,1766001045648,-500.0,0.00016986,2]
[398928198,1766001045660,-2405.186,0.00016986,2]
[398928199,1766001045671,-150.0,0.00016986,2]
[398928200,1766001045685,-150.0,0.00016986,2]
[398928201,1766001045695,-187.73749216,0.00016986,2]
[398928202,1766001045705,-150.65844905,0.00016986,2]
[398928203,1766001045717,-280.62987413,0.00016986,2]
[398928204,1766001045728,-151.17525831,0.00016986,2]
[398928205,1766001045739,-160.8607052,0.00016986,2]
[398928206,1766001045750,-150.00000001,0.00016986,2]
[398928207,1766001045760,-150.0,0.00016986,2]
[398928208,1766001045771,-151.0803606,0.00016986,2]
[398928209,1766001045782,-150.91550183,0.00016986,2]
[398928210,1766001045792,-153.15599333,0.00016986,2]
[398928212,1766001045807,-150.00000001,0.00016986,2]
[398928215,1766001045825,-150.00000001,0.00016986,2]
[398928218,1766001045842,-709.44550938,0.0001699,2]
[398928220,1766001045862,-709.44550938,0.0001699,2]
[398928221,1766001045881,-151.0,0.00016997,2]
[398928224,1766001045896,-341628.5978326,0.00016998,2]
[398928226,1766001045914,-176.1722708,0.00016998,2]
[398928229,1766001045936,-8202.5843817,0.00016998,2]
[398928230,1766001045955,-930.24,0.00016999,2]
[398928231,1766001045972,-930.24,0.00016999,2]
[398928232,1766001045990,-930.24,0.00016999,2]
[398928233,1766001046005,-930.24,0.00016999,2]
[398928234,1766001046019,-930.24,0.00016999,2]
[398928235,1766001046036,-930.24,0.00016999,2]
[398928236,1766001046049,-930.24,0.00016999,2]
[398928237,1766001046068,-930.24,0.00016999,2]
[398928238,1766001046082,-930.24,0.00016999,2]
[398928239,1766001046098,-930.24,0.00016999,2]
[398928240,1766001046112,-930.24,0.00016999,2]
[398928241,1766001046128,-930.24,0.00016999,2]
[398928242,1766001046144,-930.24,0.00016999,2]
[398928243,1766001046159,-930.24,0.00016999,2]
[398928244,1766001046173,-930.24,0.00016999,2]
[398928245,1766001046187,-930.24,0.00016999,2]
[398928246,1766001046202,-930.24,0.00016999,2]
[398928247,1766001046230,-930.24,0.00016999,2]
[398928248,1766001046245,-930.24,0.00016999,2]
[398928249,1766001046261,-930.24,0.00016999,2]
[398928250,1766001046278,-930.24,0.00016999,2]
[398928251,1766001046295,-930.29816268,0.00016999,2]
[398928254,1766001046311,-468.57497061,0.00016999,2]
[398928255,1766001046327,-964693.70686745,0.00017,2]
[398928256,1766001048697,-5122.48611647,0.00017,2]
[398928257,1766001048708,-162149.70960412,0.00017,2]
[398928258,1766001048719,-666.76886823,0.00017,2]
[398928259,1766001048730,-4378.33776394,0.00017,2]
[398928260,1766001048740,-2433.59788731,0.00017,2]
[398928261,1766001048751,-9920.25141538,0.00017,2]
[398928262,1766001048762,-181920.20537206,0.00017,2]
[398928263,1766001048773,-2724.7365,0.00017,2]
[398928264,1766001048784,-1122.70891671,0.00017,2]
[398928265,1766001048795,-11661.51930947,0.00017,2]
[398928266,1766001048809,-135285.62387498,0.00017,2]
[398928267,1766001048819,-489.30282175,0.00017,2]
[398928268,1766001048838,-3379.8,0.00017,2]
[398928269,1766001048901,-164.31,0.0001644,2]
[398928270,1766001048910,-7200159.31857958,0.00017,2]
[398928271,1766001048921,-879.9768726,0.00017,2]
[398928272,1766001048932,-959.37255751,0.00017,2]
[398928273,1766001048942,-709879.53337538,0.00017,2]
[398928274,1766001048953,-1932.73780049,0.00017,2]
[398928275,1766001048964,-3761.56668137,0.00017,2]
[398928276,1766001048975,-419.89121974,0.00017,2]
[398928277,1766001049099,-386.49005528,0.00017,2]
[398928278,1766001049110,-1588.82115271,0.00017,2]
[398928279,1766001049121,-57321.63059446,0.00017,2]
[398928280,1766001049144,-2732.7300008,0.00017,2]
[398928281,1766001049155,-600.0,0.00017,2]
[398928282,1766001049166,-2243.95,0.00017,2]
[398928283,1766001049178,-801.04957216,0.00017,2]
[398928284,1766001049189,-1801.52584177,0.00017,2]
[398928285,1766001049209,-394.95440656,0.00016621,2]
[398928286,1766001049221,-500.0,0.00016621,2]
[398928287,1766001049233,-4568.56152259,0.00016621,2]
[398928288,1766001049249,-9815.74118884,0.00016621,2]
[398928289,1766001049260,-7101.34541023,0.00017,2]
[398928290,1766001049272,-413.99999979,0.00017,2]
[398928291,1766001049284,-799.42859686,0.00017,2]
[398928292,1766001049295,-503.02645127,0.00017,2]
[398928293,1766001049416,-5986.57161965,0.000169,2]
[398928294,1766001049425,-326600.03531139,0.00017,2]
[398928295,1766001049435,-301.1,0.00017,2]
[398928296,1766001049446,-1825.84649464,0.00017,2]
[398928297,1766001049458,-37754.65699098,0.00017,2]
[398928298,1766001049469,-49934.43631107,0.00017,2]
[398928299,1766001049480,-84642.85742434,0.00017,2]
[398928300,1766001049495,-141347.61833705,0.00017,2]
[398928301,1766001049505,-358.46845774,0.00017,2]
[398928302,1766001049516,-35708.77727969,0.00017,2]
[398928303,1766001049530,-345375.25891288,0.00017,2]
[398928304,1766001049541,-276.93361131,0.00017,2]
[398928305,1766001049552,-2365.08758627,0.00017,2]
[398928306,1766001049563,-345.7829875,0.00017,2]
[398928307,1766001049574,-1599.7566905,0.00017,2]
[398928308,1766001049584,-1617.15300909,0.00017,2]
[398928309,1766001049596,-1001.9863755,0.00017,2]
[398928310,1766001049797,-199.65228897,0.00013849,2]
[398928311,1766001049806,-15279.25711799,0.000169,2]
[398928312,1766001049815,-737932.4160423,0.00017,2]
[398928313,1766001049833,-3843.05210522,0.00017,2]
[398928314,1766001049844,-7601.43040703,0.00017,2]
[398928315,1766001049854,-427400.69055618,0.00017,2]
[398928316,1766001049865,-8911.79410613,0.00017,2]
[398928317,1766001049875,-3275.848593,0.00017,2]
[398928318,1766001049887,-616.0,0.00017,2]
[398928319,1766001049898,-2486.13672743,0.00017,2]
[398928320,1766001049908,-1200.04832419,0.00017,2]
[398928321,1766001049919,-51624.1744611,0.00017,2]
[398928322,1766001049929,-4274.01090195,0.00017,2]
[398928323,1766001049940,-373.96952708,0.00017,2]
[398928324,1766001049950,-744217.270975,0.00017,2]
[398928325,1766001049961,-2518.23995329,0.00017,2]
[398928326,1766001049975,-3083.6083037,0.00017,2]
[398928331,1766002047970,150.0,0.00013301,2]
[398928332,1766002069992,254.2423,0.00012729,2]
[398928346,1766002231907,-287.9454204,0.00012637,2]
[398928352,1766002231950,-309.9245796,0.00012637,2]
[398928354,1766002231960,-215.07,0.00012677,2]
[398928356,1766002231969,-6862.81,0.00012717,2]
[398928358,1766002231980,-1200.0,0.00012728,2]
[398928360,1766002231989,-1245.7577,0.00012729,2]
[398928381,1766002232464,-308.89042449,0.00013036,2]
[398928382,1766002232478,-500.0,0.00013299,2]
[398928383,1766002232488,-500.0,0.00013299,2]
[398928384,1766002232497,-500.0,0.00013299,2]
[398928385,1766002232507,-500.0,0.00013299,2]
[398928386,1766002232516,-300.0,0.00013341,2]
[398928387,1766002232526,-300.0,0.00013341,2]
[398928388,1766002232535,-300.0,0.00013341,2]
[398928389,1766002232544,-3989.59,0.00013342,2]
[398928390,1766002232554,-1200.0,0.00013371,2]
[398928391,1766002232565,-150.0,0.00013372,2]
[398928392,1766002232578,-500.0,0.00013373,2]
[398928393,1766002232587,-500.0,0.00013373,2]
[398928394,1766002232597,-534.13325228,0.00013373,2]
[398928395,1766002232606,-500.38142603,0.00013373,2]
[398928396,1766002232615,-500.0,0.00013373,2]
[398928397,1766002232625,-500.0,0.00013373,2]
[398928398,1766002232636,-500.0,0.00013373,2]
[398928399,1766002232645,-500.0,0.00013373,2]
[398928400,1766002232654,-500.0,0.00013373,2]
[398928401,1766002232664,-500.0,0.00013373,2]
[398928402,1766002232673,-500.0,0.00013373,2]
[398928403,1766002232683,-500.0,0.00013373,2]
[398928404,1766002232693,-500.0,0.00013373,2]
[398928405,1766002232702,-179.43625326,0.00013373,2]
[398928406,1766002232711,-500.0,0.00013373,2]
[398928407,1766002232721,-500.0,0.00013373,2]
[398928408,1766002232731,-161.98577807,0.00013373,2]
[398928409,1766002232740,-626.45389736,0.00013373,2]
[398928410,1766002232749,-165.24964768,0.00013373,2]
[398928411,1766002232758,-500.0,0.00013373,2]
[398928412,1766002232767,-315.30269549,0.00013373,2]
[398928413,1766002232776,-500.0,0.00013373,2]
[398928414,1766002232785,-500.0,0.00013373,2]
[398928415,1766002232794,-500.0,0.00013373,2]
[398928416,1766002232803,-500.53247744,0.00013373,2]
[398928417,1766002232814,-500.0,0.00013373,2]
[398928418,1766002232823,-500.0,0.00013373,2]
[398928419,1766002232833,-250.59182654,0.00013373,2]
[398928420,1766002232843,-500.0,0.00013373,2]
[398928421,1766002232853,-500.0,0.00013373,2]
[398928422,1766002232863,-1477.19,0.00013373,2]
[398928423,1766002232873,-500.0,0.00013436,2]
[398928424,1766002232882,-500.0,0.00013436,2]
[398928425,1766002232892,-500.0,0.00013436,2]
[398928426,1766002232902,-500.0,0.00013438,2]
[398928427,1766002232912,-500.0,0.00013438,2]
[398928428,1766002232922,-500.0,0.00013438,2]
[398928429,1766002232932,-500.0,0.00013438,2]
[398928430,1766002232941,-500.0,0.00013438,2]
[398928431,1766002232951,-1000.0,0.00013474,2]
[398928432,1766002232960,-18870.99957873,0.00013475,2]
[398928433,1766002232969,-235.0,0.00013558,2]
[398928434,1766002232983,-321.07696526,0.00013558,2]
[398928435,1766002232992,-500.0,0.0001357,2]
[398928436,1766002233002,-500.0,0.0001357,2]
[398928437,1766002233011,-500.0,0.0001357,2]
[398928438,1766002233021,-502.1331823,0.0001357,2]
[398928439,1766002233030,-500.0,0.0001357,2]
[398928440,1766002233040,-500.0,0.0001357,2]
[398928441,1766002233049,-500.0,0.0001357,2]
[398928442,1766002233059,-500.0,0.0001357,2]
[398928443,1766002233068,-500.0,0.0001357,2]
[398928444,1766002233078,-485.15693744,0.0001357,2]
[398928445,1766002233088,-500.0,0.0001357,2]
[398928446,1766002233097,-500.0,0.0001357,2]
[398928447,1766002233107,-500.0,0.0001357,2]
[398928448,1766002233116,-500.0,0.0001357,2]
[398928449,1766002233126,-500.0,0.0001357,2]
[398928450,1766002233135,-500.0,0.0001357,2]
[398928451,1766002233145,-500.0,0.0001357,2]
[398928452,1766002233154,-500.0,0.0001357,2]
[398928453,1766002233163,-500.0,0.0001357,2]
[398928454,1766002233172,-500.0,0.0001357,2]
[398928455,1766002233181,-150.0,0.0001357,2]
[398928456,1766002233191,-500.0,0.0001357,2]
[398928457,1766002233201,-500.0,0.0001357,2]
[398928458,1766002233210,-500.0,0.0001357,2]
[398928459,1766002233219,-500.0,0.0001357,2]
[398928460,1766002233229,-500.0,0.0001357,2]
[398928461,1766002233238,-500.0,0.0001357,2]
[398928462,1766002233247,-500.0,0.0001357,2]
[398928463,1766002233256,-500.0,0.0001357,2]
[398928464,1766002233266,-500.0,0.0001357,2]
[398928465,1766002233275,-500.0,0.0001357,2]
[398928466,1766002233284,-500.0,0.0001357,2]
[398928467,1766002233293,-500.0,0.0001357,2]
[398928468,1766002233302,-500.0,0.0001357,2]
[398928469,1766002233311,-500.0,0.0001357,2]
[398928470,1766002233320,-500.0,0.0001357,2]
[398928471,1766002233330,-500.0,0.0001357,2]
[398928472,1766002233339,-500.0,0.0001357,2]
[398928473,1766002233348,-500.0,0.0001357,2]
[398928474,1766002233357,-500.0,0.0001357,2]
[398928475,1766002233366,-500.0,0.0001357,2]
[398928476,1766002233375,-500.0,0.0001357,2]
[398928477,1766002233384,-500.0,0.0001357,2]
[398928478,1766002233396,-554.10496261,0.0001357,2]
[398928479,1766002233405,-500.0,0.0001357,2]
[398928480,1766002233415,-500.0,0.0001357,2]
[398928481,1766002233424,-500.0,0.0001357,2]
[398928482,1766002233434,-500.0,0.0001357,2]
[398928483,1766002233443,-500.0,0.0001357,2]
[398928484,1766002233452,-500.0,0.0001357,2]
[398928485,1766002233462,-500.0,0.0001357,2]
[398928486,1766002233471,-500.0,0.0001357,2]
[398928487,1766002233481,-500.0,0.0001357,2]
[398928488,1766002233491,-350.0,0.0001357,2]
[398928489,1766002233501,-500.0,0.0001357,2]
[398928490,1766002233511,-500.0,0.0001357,2]
[398928491,1766002233520,-500.0,0.0001357,2]
[398928492,1766002233530,-500.0,0.0001357,2]
[398928493,1766002233539,-3406.27,0.00013571,2]
[398928494,1766002233548,-500.0,0.00013573,2]
[398928495,1766002233558,-500.0,0.00013573,2]
[398928496,1766002233567,-500.0,0.00013573,2]
[398928497,1766002233576,-500.0,0.00013573,2]
[398928498,1766002233585,-150.0,0.00013573,2]
[398928499,1766002233594,-150.0,0.00013573,2]
[398928500,1766002233603,-150.0,0.00013573,2]
[398928501,1766002233611,-150.0,0.00013573,2]
[398928502,1766002233621,-150.0,0.00013573,2]
[398928503,1766002233630,-150.0,0.00013573,2]
[398928504,1766002233640,-150.0,0.00013573,2]
[398928505,1766002233649,-161.99230191,0.00013573,2]
[398928506,1766002233658,-150.42124713,0.00013573,2]
[398928507,1766002233667,-3869.808,0.00013574,2]
[398928508,1766002233676,-176.674,0.00013574,2]
[398928509,1766002233685,-157.61215021,0.00013574,2]
[398928510,1766002233694,-462.54744022,0.00013574,2]
[398928511,1766002233702,-305.27866082,0.00013574,2]
[398928512,1766002233712,-500.0,0.00013575,2]
[398928513,1766002233721,-500.0,0.00013575,2]
[398928514,1766002233731,-500.0,0.00013575,2]
[398928515,1766002233740,-500.0,0.00013575,2]
[398928516,1766002233753,-500.0,0.00013575,2]
[398928517,1766002233762,-500.0,0.00013575,2]
[398928518,1766002233772,-200.0,0.00013575,2]
[398928519,1766002233781,-256.96660006,0.00013575,2]
[398928520,1766002233791,-150.0,0.00013575,2]
[398928521,1766002233800,-150.0,0.00013575,2]
[398928522,1766002233809,-500.0,0.00013575,2]
[398928523,1766002233819,-500.0,0.00013575,2]
[398928524,1766002233828,-500.0,0.00013575,2]
[398928525,1766002233837,-9999.99,0.00013575,2]
[398928526,1766002233846,-3804.02,0.00013575,2]
[398928527,1766002233856,-9999.99,0.00013575,2]
[398928528,1766002233865,-8654.06,0.00013575,2]
[398928529,1766002233874,-150.99,0.00013575,2]
[398928530,1766002233884,-299.99,0.00013575,2]
[398928531,1766002233893,-29204.14,0.00013575,2]
[398928532,1766002233902,-9999.99,0.00013575,2]
[398928533,1766002233911,-28635.52,0.00013575,2]
[398928534,1766002233920,-4257.0534648,0.00013575,2]
[398928535,1766002235575,-11852.55248002,0.00013575,2]
[398928536,1766002235587,-12311.79475696,0.00013575,2]
[398928537,1766002235598,-37080.35653389,0.00013575,2]
[398928538,1766002235649,-2448.38172906,0.00013575,2]
[398928542,1766002238015,-150.0,0.00013299,2]
[398928543,1766002238026,-150.0,0.00013299,2]
[398928544,1766002238037,-150.0,0.00013299,2]
[398928545,1766002238046,-150.0,0.00013299,2]
[398928546,1766002238056,-158.38175022,0.00013299,2]
[398928547,1766002238066,-150.0,0.00013299,2]
[398928548,1766002238076,-500.0,0.00013299,2]
[398928549,1766002238087,-150.0,0.00013299,2]
[398928550,1766002238096,-500.0,0.00013436,2]
[398928551,1766002238105,-200.0,0.00013436,2]
[398928552,1766002238115,-150.0,0.00013436,2]
[398928553,1766002238124,-500.0,0.00013436,2]
[398928554,1766002238133,-150.0,0.00013436,2]
[398928555,1766002238143,-500.0,0.00013475,2]
[398928556,1766002238152,-500.0,0.00013573,2]
[398928557,1766002238162,-150.0,0.00013573,2]
[398928558,1766002238171,-500.0,0.00013573,2]
[398928559,1766002238181,-150.0,0.00013573,2]
[398928560,1766002238191,-1474.41103527,0.00013575,2]
[398928561,1766002238200,-9999.99,0.00013575,2]
[398928562,1766002238209,-999.99,0.00013575,2]
[398928563,1766002238218,-732.14009913,0.00013575,2]
[398928568,1766002238264,-7618.34990087,0.00013575,2]
[398928570,1766002238274,-1530.11,0.00013575,2]
[398928572,1766002238284,-510.31,0.00013575,2]
[398928574,1766002238293,-7183.72,0.00013575,2]
[398928576,1766002238302,-9999.99,0.00013575,2]
[398928578,1766002238311,-404.9,0.00013575,2]
[398928580,1766002238320,-150.99,0.00013575,2]
[398928582,1766002238330,-398.39,0.00013575,2]
[398928584,1766002238340,-613.0,0.00013585,2]
[398928586,1766002238349,-21848.83616193,0.00013599,2]
[398928588,1766002238359,-1241.0,0.00013612,2]
[398928590,1766002238370,-1477.19,0.00013647,2]
[398928592,1766002238379,-1398.69219031,0.0001365,2]
[398928594,1766002238389,-6680.3459,0.0001365,2]
[398928596,1766002238402,-2341.2151,0.0001365,2]
[398928597,1766002238411,-23988.272,0.0001365,2]
[398928598,1766002238420,-1000.0,0.00013698,2]
[398928599,1766002238430,-1000.0,0.00013698,2]
[398928600,1766002238441,-1000.0,0.00013698,2]
[398928601,1766002238450,-1000.0,0.00013698,2]
[398928602,1766002238460,-1000.0,0.00013698,2]
[398928603,1766002238471,-1000.0,0.00013698,2]
[398928604,1766002238481,-1000.0,0.00013698,2]
[398928605,1766002238491,-1000.0,0.00013698,2]
[398928606,1766002238501,-1000.0,0.00013698,2]
[398928607,1766002238511,-1000.0,0.00013698,2]
[398928608,1766002238522,-725.73772161,0.00013698,2]
[398928609,1766002238532,-500.0,0.00013698,2]
[398928610,1766002238542,-500.0,0.00013698,2]
[398928611,1766002238552,-500.0,0.00013698,2]
[398928612,1766002238562,-500.0,0.00013698,2]
[398928613,1766002238572,-500.0,0.00013698,2]
[398928614,1766002238583,-500.0,0.00013698,2]
[398928615,1766002238593,-195.95,0.00013699,2]
[398928616,1766002238602,-163.29,0.00013699,2]
[398928617,1766002238612,-816.49,0.00013699,2]
[398928618,1766002238621,-166.66,0.00013699,2]
[398928619,1766002238630,-500.0,0.0001371,2]
[398928620,1766002238640,-500.0,0.0001371,2]
[398928621,1766002238649,-500.0,0.0001371,2]
[398928622,1766002238658,-500.0,0.0001371,2]
[398928623,1766002238668,-250.0,0.0001371,2]
[398928624,1766002238677,-407.10428919,0.0001371,2]
[398928625,1766002238687,-150.0,0.0001371,2]
[398928626,1766002238696,-500.0,0.0001371,2]
[398928628,1766002238705,-150.0,0.0001371,2]
[398928630,1766002238715,-150.0,0.0001371,2]
[398928631,1766002238724,-150.0,0.0001371,2]
[398928632,1766002238734,-150.0,0.0001371,2]
[398928633,1766002238742,-150.0,0.0001371,2]
[398928634,1766002238751,-150.0,0.00013712,2]
[398928635,1766002238761,-500.0,0.00013712,2]
[398928636,1766002238770,-150.0,0.00013712,2]
[398928637,1766002238779,-150.0,0.00013712,2]
[398928638,1766002238788,-500.0,0.00013712,2]
[398928639,1766002238797,-500.0,0.00013712,2]
[398928640,1766002238807,-500.0,0.00013749,2]
[398928641,1766002238816,-663.08167248,0.00013753,2]
[398928642,1766002238825,-166.66,0.00013836,2]
[398928643,1766002238834,-200.0,0.00013841,2]
[398928644,1766002238843,-500.0,0.00013841,2]
[398928645,1766002238852,-200.0,0.00013841,2]
[398928646,1766002238862,-194.21929349,0.00013841,2]
[398928647,1766002238870,-500.0,0.00013841,2]
[398928648,1766002238880,-500.0,0.00013841,2]
[398928649,1766002238889,-500.0,0.00013841,2]
[398928650,1766002238898,-500.0,0.00013841,2]
[398928651,1766002238907,-500.0,0.00013841,2]
[398928652,1766002238916,-500.0,0.00013841,2]
[398928653,1766002238925,-500.0,0.00013841,2]
[398928654,1766002238934,-500.0,0.00013841,2]
[398928655,1766002238943,-500.0,0.00013841,2]
[398928656,1766002238953,-500.0,0.00013841,2]
[398928657,1766002238963,-500.0,0.00013841,2]
[398928658,1766002238972,-500.0,0.00013841,2]
[398928659,1766002239403,-500.0,0.00013841,2]
[398928660,1766002239412,-500.0,0.00013841,2]